[Event "Titled Tuesday Blitz December 20 Late 2022"]
[White "Renjith, Sravan"]
[Black "Melkumyan, Hrant"]
[WhiteFideId "4306783"]
[BlackFideId "13302485"]
[WhiteElo "2582"]
[BlackElo "2936"]
[Result "0-1"]
[Round "06"]
[TimeControl "180+1"]
[Date "2022.12.21"]
[WhiteClock "0:00:03"]
[BlackClock "0:00:13"]

1. Nf3 {[%clk 0:03:00]}  c5 {[%clk 0:02:58]} 2. c3 {[%clk 0:03:00]}  Nf6 {[%clk 0:02:51]} 3. d4 {[%clk 0:02:59]}  d5 {[%clk 0:02:52]} 4. g3 {[%clk 0:02:59]}  Nc6 {[%clk 0:02:51]} 5. Bg2 {[%clk 0:02:59]}  cxd4 {[%clk 0:02:51]} 6. cxd4 {[%clk 0:02:59]}  Bf5 {[%clk 0:02:51]} 7. O-O {[%clk 0:03:00]}  e6 {[%clk 0:02:51]} 8. Nc3 {[%clk 0:03:00]}  h6 {[%clk 0:02:51]} 9. a3 {[%clk 0:03:00]}  Be7 {[%clk 0:02:51]} 10. Ne5 {[%clk 0:02:58]}  Rc8 {[%clk 0:02:50]} 11. Nxc6 {[%clk 0:02:56]}  Rxc6 {[%clk 0:02:50]} 12. Bf4 {[%clk 0:02:57]}  O-O {[%clk 0:02:50]} 13. Rc1 {[%clk 0:02:57]}  Qb6 {[%clk 0:02:45]} 14. Qd2 {[%clk 0:02:50]}  Rfc8 {[%clk 0:02:44]} 15. f3 {[%clk 0:02:47]}  Rc4 {[%clk 0:02:36]} 16. Be3 {[%clk 0:02:47]}  Qb3 {[%clk 0:02:34]} 17. Ra1 {[%clk 0:01:55]}  b5 {[%clk 0:02:30]} 18. Rfc1 {[%clk 0:01:54]}  a5 {[%clk 0:02:28]} 19. Qd1 {[%clk 0:01:45]}  Qxb2 {[%clk 0:02:21]} 20. Ra2 {[%clk 0:01:36]}  Qxc3 {[%clk 0:02:13]} 21. Rxc3 {[%clk 0:01:36]}  Rxc3 {[%clk 0:02:14]} 22. Bd2 {[%clk 0:01:27]}  R3c4 {[%clk 0:02:13]} 23. e3 {[%clk 0:01:22]}  b4 {[%clk 0:02:08]} 24. Bf1 {[%clk 0:01:19]}  Rc2 {[%clk 0:02:08]} 25. Rxc2 {[%clk 0:01:16]}  Bxc2 {[%clk 0:02:09]} 26. Qc1 {[%clk 0:01:15]}  b3 {[%clk 0:02:04]} 27. Bxa5 {[%clk 0:01:12]}  Rb8 {[%clk 0:01:44]} 28. Bc3 {[%clk 0:01:07]}  Nd7 {[%clk 0:01:38]} 29. a4 {[%clk 0:01:07]}  Nb6 {[%clk 0:01:35]} 30. a5 {[%clk 0:01:07]}  Na4 {[%clk 0:01:26]} 31. Ba1 {[%clk 0:00:58]}  Bb4 {[%clk 0:01:02]} 32. a6 {[%clk 0:00:57]}  Nb6 {[%clk 0:00:54]} 33. e4 {[%clk 0:00:52]}  Nc4 {[%clk 0:00:50]} 34. Bxc4 {[%clk 0:00:32]}  dxc4 {[%clk 0:00:50]} 35. Qf4 {[%clk 0:00:33]}  Ra8 {[%clk 0:00:45]} 36. Qc7 {[%clk 0:00:32]}  c3 {[%clk 0:00:28]} 37. Bxc3 {[%clk 0:00:14]}  Rxa6 {[%clk 0:00:28]} 38. Bxb4 {[%clk 0:00:11]}  Ra1+ {[%clk 0:00:28]} 39. Kf2 {[%clk 0:00:10]}  b2 {[%clk 0:00:28]} 40. Qxc2 {[%clk 0:00:10]}  b1=Q {[%clk 0:00:29]} 41. Qxb1 {[%clk 0:00:10]}  Rxb1 {[%clk 0:00:30]} 42. Bd2 {[%clk 0:00:11]}  f5 {[%clk 0:00:29]} 43. exf5 {[%clk 0:00:10]}  exf5 {[%clk 0:00:29]} 44. Ke3 {[%clk 0:00:11]}  Kf7 {[%clk 0:00:29]} 45. Kf4 {[%clk 0:00:11]}  Kf6 {[%clk 0:00:28]} 46. h4 {[%clk 0:00:12]}  g5+ {[%clk 0:00:23]} 47. hxg5+ {[%clk 0:00:12]}  hxg5+ {[%clk 0:00:24]} 48. Ke3 {[%clk 0:00:12]}  Rb3+ {[%clk 0:00:25]} 49. Kf2 {[%clk 0:00:13]}  g4 {[%clk 0:00:26]} 50. fxg4 {[%clk 0:00:10]}  fxg4 {[%clk 0:00:26]} 51. Bf4 {[%clk 0:00:09]}  Kf5 {[%clk 0:00:27]} 52. d5 {[%clk 0:00:10]}  Ke4 {[%clk 0:00:26]} 53. d6 {[%clk 0:00:10]}  Rb2+ {[%clk 0:00:25]} 54. Ke1 {[%clk 0:00:10]}  Rb5 {[%clk 0:00:19]} 55. Kd2 {[%clk 0:00:10]}  Kd4 {[%clk 0:00:18]} 56. Ke2 {[%clk 0:00:09]}  Rb2+ {[%clk 0:00:17]} 57. Ke1 {[%clk 0:00:08]}  Rb7 {[%clk 0:00:15]} 58. Ke2 {[%clk 0:00:08]}  Ke4 {[%clk 0:00:16]} 59. Ke1 {[%clk 0:00:09]}  Ra7 {[%clk 0:00:15]} 60. Kd2 {[%clk 0:00:09]}  Ra3 {[%clk 0:00:13]} 61. Ke2 {[%clk 0:00:07]}  Rd3 {[%clk 0:00:13]} 62. Ke1 {[%clk 0:00:07]}  Kf3 {[%clk 0:00:13]} 63. Bd2 {[%clk 0:00:01]}  Rxd6 {[%clk 0:00:12]} 64. Bf4 {[%clk 0:00:01]}  Re6+ {[%clk 0:00:12]} 65. Kd2 {[%clk 0:00:01]}  Re4 {[%clk 0:00:12]} 66. Bc7 {[%clk 0:00:02]}  Re2+ {[%clk 0:00:12]} 67. Kd3 {[%clk 0:00:03]}  Rg2 {[%clk 0:00:13]} 0-1


[Site "https://www.chess.com"]

[Event "Titled Tuesday Blitz December 20 Late 2022"]
[White "Ronka, Erik"]
[Black "Matinian, Nikita"]
[WhiteFideId "505080"]
[BlackFideId "24129100"]
[WhiteElo "2264"]
[BlackElo "2422"]
[Result "0-1"]
[Round "06"]
[TimeControl "180+1"]
[Date "2022.12.21"]
[WhiteClock "0:00:08"]
[BlackClock "0:01:32"]

1. d4 {[%clk 0:03:00]}  Nf6 {[%clk 0:03:00]} 2. Nf3 {[%clk 0:03:01]}  g6 {[%clk 0:03:00]} 3. Bg5 {[%clk 0:03:00]}  Bg7 {[%clk 0:03:00]} 4. Nbd2 {[%clk 0:03:00]}  d5 {[%clk 0:03:00]} 5. e3 {[%clk 0:03:00]}  b6 {[%clk 0:03:01]} 6. Bd3 {[%clk 0:02:56]}  Bb7 {[%clk 0:03:00]} 7. O-O {[%clk 0:02:56]}  O-O {[%clk 0:03:00]} 8. Qe2 {[%clk 0:02:56]}  h6 {[%clk 0:02:59]} 9. Bh4 {[%clk 0:02:52]}  c5 {[%clk 0:03:00]} 10. c3 {[%clk 0:02:51]}  Nc6 {[%clk 0:02:59]} 11. Rad1 {[%clk 0:02:48]}  Qc8 {[%clk 0:02:54]} 12. h3 {[%clk 0:02:46]}  a5 {[%clk 0:02:52]} 13. Rfe1 {[%clk 0:02:45]}  e6 {[%clk 0:02:46]} 14. dxc5 {[%clk 0:02:04]}  bxc5 {[%clk 0:02:47]} 15. e4 {[%clk 0:02:04]}  Ba6 {[%clk 0:02:38]} 16. Bxa6 {[%clk 0:01:59]}  Qxa6 {[%clk 0:02:39]} 17. exd5 {[%clk 0:01:56]}  exd5 {[%clk 0:02:34]} 18. Qxa6 {[%clk 0:01:54]}  Rxa6 {[%clk 0:02:34]} 19. Nb3 {[%clk 0:01:55]}  Rb6 {[%clk 0:02:00]} 20. Nxc5 {[%clk 0:01:41]}  Rxb2 {[%clk 0:02:00]} 21. Bxf6 {[%clk 0:01:41]}  Bxf6 {[%clk 0:02:00]} 22. Nd7 {[%clk 0:01:41]}  Bxc3 {[%clk 0:01:59]} 23. Re3 {[%clk 0:00:32]}  d4 {[%clk 0:01:58]} 24. Re4 {[%clk 0:00:33]}  Rd8 {[%clk 0:01:51]} 25. Nf6+ {[%clk 0:00:27]}  Kg7 {[%clk 0:01:51]} 26. Ne8+ {[%clk 0:00:27]}  Kf8 {[%clk 0:01:51]} 27. Nc7 {[%clk 0:00:27]}  Rxa2 {[%clk 0:01:48]} 28. Nb5 {[%clk 0:00:19]}  a4 {[%clk 0:01:39]} 29. g4 {[%clk 0:00:08]}  a3 {[%clk 0:01:37]} 30. Nxc3 {[%clk 0:00:05]}  dxc3 {[%clk 0:01:35]} 31. Rxd8+ {[%clk 0:00:06]}  Nxd8 {[%clk 0:01:35]} 32. Rc4 {[%clk 0:00:06]}  c2 {[%clk 0:01:35]} 33. Kg2 {[%clk 0:00:06]}  Rb2 {[%clk 0:01:35]} 34. Nd4 {[%clk 0:00:07]}  a2 {[%clk 0:01:35]} 35. Nxc2 {[%clk 0:00:06]}  Rxc2 {[%clk 0:01:35]} 36. Ra4 {[%clk 0:00:06]}  Nc6 {[%clk 0:01:33]} 37. Kg3 {[%clk 0:00:07]}  Nb4 {[%clk 0:01:33]} 38. h4 {[%clk 0:00:07]}  Rc1 {[%clk 0:01:32]} 39. f4 {[%clk 0:00:08]}  a1=Q {[%clk 0:01:32]} 0-1


[Site "https://www.chess.com"]

[Event "Titled Tuesday Blitz December 20 Late 2022"]
[White "Rose, Felix"]
[Black "benny_aizenberg"]
[WhiteFideId "5105722"]
[WhiteElo "2039"]
[BlackElo "2405"]
[Result "0-1"]
[Round "06"]
[TimeControl "180+1"]
[Date "2022.12.21"]
[WhiteClock "0:01:01"]
[BlackClock "0:01:49"]

1. e4 {[%clk 0:03:00]}  c5 {[%clk 0:03:00]} 2. Nf3 {[%clk 0:03:00]}  d6 {[%clk 0:03:00]} 3. d4 {[%clk 0:03:00]}  cxd4 {[%clk 0:03:01]} 4. Nxd4 {[%clk 0:03:01]}  Nf6 {[%clk 0:03:01]} 5. Nc3 {[%clk 0:03:02]}  a6 {[%clk 0:03:02]} 6. Be3 {[%clk 0:03:01]}  e5 {[%clk 0:03:02]} 7. Nb3 {[%clk 0:03:02]}  Be7 {[%clk 0:03:02]} 8. f3 {[%clk 0:03:02]}  Be6 {[%clk 0:03:02]} 9. Qd2 {[%clk 0:03:02]}  O-O {[%clk 0:03:02]} 10. O-O-O {[%clk 0:03:03]}  Nbd7 {[%clk 0:03:02]} 11. g4 {[%clk 0:03:03]}  b5 {[%clk 0:03:03]} 12. g5 {[%clk 0:03:04]}  Nh5 {[%clk 0:03:03]} 13. Kb1 {[%clk 0:03:01]}  Nb6 {[%clk 0:03:04]} 14. Na5 {[%clk 0:02:56]}  Rc8 {[%clk 0:02:57]} 15. Rg1 {[%clk 0:02:55]}  Qc7 {[%clk 0:02:47]} 16. a3 {[%clk 0:02:33]}  g6 {[%clk 0:02:23]} 17. h4 {[%clk 0:02:27]}  Rfd8 {[%clk 0:02:17]} 18. Be2 {[%clk 0:02:16]}  d5 {[%clk 0:02:00]} 19. Bxb6 {[%clk 0:02:09]}  Qxb6 {[%clk 0:02:00]} 20. Nxd5 {[%clk 0:02:09]}  Bxd5 {[%clk 0:02:00]} 21. exd5 {[%clk 0:02:09]}  Nf4 {[%clk 0:02:00]} 22. b4 {[%clk 0:01:13]}  Nxd5 {[%clk 0:01:51]} 23. Rde1 {[%clk 0:01:01]}  Nc3+ {[%clk 0:01:49]} 0-1


[Site "https://www.chess.com"]

[Event "Titled Tuesday Blitz December 20 Late 2022"]
[White "Rosenberg, Evan S"]
[Black "Tristan, Leonardo"]
[WhiteFideId "2019299"]
[BlackFideId "113816"]
[WhiteElo "2409"]
[BlackElo "2461"]
[Result "0-1"]
[Round "06"]
[TimeControl "180+1"]
[Date "2022.12.21"]
[WhiteClock "0:00:01"]
[BlackClock "0:00:24"]

1. d4 {[%clk 0:03:00]}  d5 {[%clk 0:03:00]} 2. Nf3 {[%clk 0:03:00]}  Nf6 {[%clk 0:03:00]} 3. c3 {[%clk 0:03:01]}  Bf5 {[%clk 0:02:59]} 4. Qb3 {[%clk 0:03:00]}  Qc8 {[%clk 0:02:59]} 5. c4 {[%clk 0:03:00]}  e6 {[%clk 0:02:57]} 6. cxd5 {[%clk 0:03:00]}  exd5 {[%clk 0:02:57]} 7. Nc3 {[%clk 0:03:01]}  c6 {[%clk 0:02:57]} 8. Bf4 {[%clk 0:03:01]}  Be7 {[%clk 0:02:54]} 9. Rc1 {[%clk 0:03:02]}  O-O {[%clk 0:02:48]} 10. h3 {[%clk 0:03:02]}  Nbd7 {[%clk 0:02:44]} 11. g4 {[%clk 0:02:49]}  Be6 {[%clk 0:02:44]} 12. Ng5 {[%clk 0:02:45]}  h6 {[%clk 0:02:36]} 13. Nxe6 {[%clk 0:02:46]}  fxe6 {[%clk 0:02:36]} 14. e3 {[%clk 0:02:45]}  Ne8 {[%clk 0:02:30]} 15. Bg2 {[%clk 0:02:41]}  Bd6 {[%clk 0:02:30]} 16. Ne2 {[%clk 0:01:59]}  Qc7 {[%clk 0:02:20]} 17. g5 {[%clk 0:01:46]}  Qa5+ {[%clk 0:01:45]} 18. Kf1 {[%clk 0:01:41]}  Bxf4 {[%clk 0:01:41]} 19. Nxf4 {[%clk 0:01:40]}  hxg5 {[%clk 0:01:42]} 20. Nxe6 {[%clk 0:01:40]}  Qd2 {[%clk 0:01:42]} 21. Nxf8 {[%clk 0:01:29]}  Nxf8 {[%clk 0:01:38]} 22. Qc2 {[%clk 0:01:18]}  Qa5 {[%clk 0:01:37]} 23. a3 {[%clk 0:01:15]}  Nf6 {[%clk 0:01:38]} 24. Kg1 {[%clk 0:01:08]}  Re8 {[%clk 0:01:36]} 25. Kh2 {[%clk 0:01:08]}  Qc7+ {[%clk 0:01:36]} 26. Kg1 {[%clk 0:01:06]}  Ne4 {[%clk 0:01:08]} 27. Bxe4 {[%clk 0:00:57]}  Rxe4 {[%clk 0:01:09]} 28. Rh2 {[%clk 0:00:57]}  Ng6 {[%clk 0:01:07]} 29. Rf1 {[%clk 0:00:46]}  Nh4 {[%clk 0:01:07]} 30. Qe2 {[%clk 0:00:37]}  Qf7 {[%clk 0:01:06]} 31. f3 {[%clk 0:00:30]}  Re6 {[%clk 0:01:06]} 32. Qf2 {[%clk 0:00:20]}  Rf6 {[%clk 0:00:47]} 33. f4 {[%clk 0:00:20]}  Qg6 {[%clk 0:00:48]} 34. Kh1 {[%clk 0:00:16]}  Qe4+ {[%clk 0:00:48]} 35. Kg1 {[%clk 0:00:16]}  gxf4 {[%clk 0:00:43]} 36. Qxh4 {[%clk 0:00:06]}  Rg6+ {[%clk 0:00:43]} 37. Qg4 {[%clk 0:00:07]}  fxe3 {[%clk 0:00:39]} 38. Qxg6 {[%clk 0:00:05]}  Qxg6+ {[%clk 0:00:39]} 39. Rg2 {[%clk 0:00:06]}  Qe4 {[%clk 0:00:38]} 40. Re1 {[%clk 0:00:04]}  Qxd4 {[%clk 0:00:38]} 41. Rge2 {[%clk 0:00:03]}  Qf6 {[%clk 0:00:36]} 42. Rxe3 {[%clk 0:00:04]}  Qxb2 {[%clk 0:00:36]} 43. Re8+ {[%clk 0:00:04]}  Kh7 {[%clk 0:00:36]} 44. R8e3 {[%clk 0:00:04]}  d4 {[%clk 0:00:36]} 45. Re4 {[%clk 0:00:04]}  c5 {[%clk 0:00:32]} 46. R1e2 {[%clk 0:00:03]}  Qxa3 {[%clk 0:00:32]} 47. Rh4+ {[%clk 0:00:04]}  Kg8 {[%clk 0:00:32]} 48. Re8+ {[%clk 0:00:03]}  Kf7 {[%clk 0:00:33]} 49. Ree4 {[%clk 0:00:04]}  Qc1+ {[%clk 0:00:32]} 50. Kf2 {[%clk 0:00:04]}  Qc2+ {[%clk 0:00:32]} 51. Kf3 {[%clk 0:00:04]}  Qd3+ {[%clk 0:00:32]} 52. Kf2 {[%clk 0:00:04]}  a5 {[%clk 0:00:29]} 53. Rhf4+ {[%clk 0:00:04]}  Kg8 {[%clk 0:00:27]} 54. Re8+ {[%clk 0:00:04]}  Kh7 {[%clk 0:00:28]} 55. Rh4+ {[%clk 0:00:05]}  Kg6 {[%clk 0:00:28]} 56. Rg4+ {[%clk 0:00:05]}  Kf7 {[%clk 0:00:29]} 57. Ree4 {[%clk 0:00:05]}  g5 {[%clk 0:00:29]} 58. Re2 {[%clk 0:00:04]}  Qf5+ {[%clk 0:00:28]} 59. Kg3 {[%clk 0:00:04]}  Kg6 {[%clk 0:00:28]} 60. Rf2 {[%clk 0:00:03]}  Qe5+ {[%clk 0:00:28]} 61. Kg2 {[%clk 0:00:04]}  Kh5 {[%clk 0:00:26]} 62. Rf8 {[%clk 0:00:03]}  Qd5+ {[%clk 0:00:25]} 63. Kg1 {[%clk 0:00:02]}  d3 {[%clk 0:00:24]} 64. Rh8+ {[%clk 0:00:02]}  Kg6 {[%clk 0:00:25]} 65. Rc8 {[%clk 0:00:01]}  d2 {[%clk 0:00:24]} 66. Rxc5 {[%clk 0:00:01]}  d1=Q+ {[%clk 0:00:24]} 0-1


[Site "https://www.chess.com"]

[Event "Titled Tuesday Blitz December 20 Late 2022"]
[White "Sarana, Alexey"]
[Black "Donchenko, Alexander"]
[WhiteFideId "24133795"]
[BlackFideId "24603295"]
[WhiteElo "2708"]
[BlackElo "2581"]
[Result "1-0"]
[Round "06"]
[TimeControl "180+1"]
[Date "2022.12.20"]
[WhiteClock "0:00:23"]
[BlackClock "0:00:23"]

1. d4 {[%clk 0:03:00]}  Nf6 {[%clk 0:02:59]} 2. c4 {[%clk 0:03:00]}  e6 {[%clk 0:03:00]} 3. Nc3 {[%clk 0:03:01]}  Bb4 {[%clk 0:03:00]} 4. e3 {[%clk 0:03:02]}  c5 {[%clk 0:02:59]} 5. Bd3 {[%clk 0:03:01]}  Nc6 {[%clk 0:03:00]} 6. Ne2 {[%clk 0:03:00]}  O-O {[%clk 0:02:59]} 7. O-O {[%clk 0:02:56]}  cxd4 {[%clk 0:02:59]} 8. exd4 {[%clk 0:02:55]}  d5 {[%clk 0:03:00]} 9. c5 {[%clk 0:02:54]}  b6 {[%clk 0:02:56]} 10. Bb5 {[%clk 0:02:45]}  Bb7 {[%clk 0:02:49]} 11. a3 {[%clk 0:02:44]}  Bxc3 {[%clk 0:02:48]} 12. Nxc3 {[%clk 0:02:45]}  bxc5 {[%clk 0:02:37]} 13. dxc5 {[%clk 0:02:46]}  d4 {[%clk 0:02:38]} 14. Na4 {[%clk 0:02:46]}  Qd5 {[%clk 0:02:32]} 15. f3 {[%clk 0:02:47]}  Na5 {[%clk 0:02:07]} 16. b4 {[%clk 0:02:04]}  Nb3 {[%clk 0:02:07]} 17. Rb1 {[%clk 0:02:04]}  Nxc1 {[%clk 0:02:07]} 18. Rxc1 {[%clk 0:02:04]}  Rfc8 {[%clk 0:02:01]} 19. Qd3 {[%clk 0:02:01]}  e5 {[%clk 0:01:58]} 20. Bc4 {[%clk 0:01:51]}  Qd7 {[%clk 0:01:54]} 21. b5 {[%clk 0:01:51]}  e4 {[%clk 0:01:49]} 22. fxe4 {[%clk 0:01:45]}  Bxe4 {[%clk 0:01:50]} 23. Qg3 {[%clk 0:01:23]}  Bg6 {[%clk 0:01:36]} 24. c6 {[%clk 0:01:22]}  Qe7 {[%clk 0:01:32]} 25. Nc5 {[%clk 0:01:17]}  Kh8 {[%clk 0:01:19]} 26. Bd3 {[%clk 0:01:07]}  Nd5 {[%clk 0:00:59]} 27. Bxg6 {[%clk 0:01:01]}  fxg6 {[%clk 0:00:54]} 28. Rfd1 {[%clk 0:00:54]}  Nc3 {[%clk 0:00:53]} 29. Rxc3 {[%clk 0:00:48]}  dxc3 {[%clk 0:00:53]} 30. Qxc3 {[%clk 0:00:48]}  h6 {[%clk 0:00:45]} 31. Rd7 {[%clk 0:00:46]}  Qf8 {[%clk 0:00:38]} 32. Ne6 {[%clk 0:00:45]}  Qf6 {[%clk 0:00:36]} 33. Qxf6 {[%clk 0:00:44]}  gxf6 {[%clk 0:00:37]} 34. c7 {[%clk 0:00:45]}  Kg8 {[%clk 0:00:34]} 35. a4 {[%clk 0:00:35]}  Re8 {[%clk 0:00:34]} 36. a5 {[%clk 0:00:22]}  Rxe6 {[%clk 0:00:21]} 37. Rd8+ {[%clk 0:00:22]}  Re8 {[%clk 0:00:22]} 38. Rxa8 {[%clk 0:00:22]}  Rxa8 {[%clk 0:00:23]} 39. b6 {[%clk 0:00:22]}  axb6 {[%clk 0:00:23]} 40. axb6 {[%clk 0:00:23]} 1-0


[Site "https://www.chess.com"]

[Event "Titled Tuesday Blitz December 20 Late 2022"]
[White "Sarkar, Justin"]
[Black "Torres Dominguez, David"]
[WhiteFideId "2010011"]
[BlackFideId "2220857"]
[WhiteElo "2239"]
[BlackElo "2037"]
[Result "1-0"]
[Round "06"]
[TimeControl "180+1"]
[Date "2022.12.21"]
[WhiteClock "0:00:05"]
[BlackClock "0:00:10"]

1. e4 {[%clk 0:02:54]}  Nc6 {[%clk 0:02:58]} 2. d4 {[%clk 0:02:44]}  e5 {[%clk 0:02:58]} 3. dxe5 {[%clk 0:02:25]}  Nxe5 {[%clk 0:02:59]} 4. Nf3 {[%clk 0:02:25]}  Qf6 {[%clk 0:02:59]} 5. Nc3 {[%clk 0:02:24]}  Bb4 {[%clk 0:02:58]} 6. Bd2 {[%clk 0:02:14]}  Nxf3+ {[%clk 0:02:56]} 7. gxf3 {[%clk 0:02:13]}  Ne7 {[%clk 0:02:52]} 8. Qe2 {[%clk 0:01:50]}  d6 {[%clk 0:02:18]} 9. Qb5+ {[%clk 0:01:24]}  Nc6 {[%clk 0:02:11]} 10. O-O-O {[%clk 0:01:24]}  O-O {[%clk 0:01:49]} 11. Rg1 {[%clk 0:00:58]}  Kh8 {[%clk 0:01:15]} 12. Qg5 {[%clk 0:00:39]}  Bxc3 {[%clk 0:01:07]} 13. Bxc3 {[%clk 0:00:36]}  Qxg5+ {[%clk 0:01:06]} 14. Rxg5 {[%clk 0:00:35]}  f6 {[%clk 0:01:06]} 15. Rg3 {[%clk 0:00:35]}  Be6 {[%clk 0:01:05]} 16. f4 {[%clk 0:00:32]}  Rae8 {[%clk 0:01:05]} 17. b3 {[%clk 0:00:19]}  Bd7 {[%clk 0:01:04]} 18. f3 {[%clk 0:00:17]}  a6 {[%clk 0:01:00]} 19. f5 {[%clk 0:00:16]}  Ne5 {[%clk 0:00:51]} 20. Be2 {[%clk 0:00:15]}  Bb5 {[%clk 0:00:50]} 21. Bxb5 {[%clk 0:00:11]}  axb5 {[%clk 0:00:50]} 22. Rd5 {[%clk 0:00:11]}  c6 {[%clk 0:00:31]} 23. Rxd6 {[%clk 0:00:10]}  Rd8 {[%clk 0:00:29]} 24. Rxd8 {[%clk 0:00:07]}  Rxd8 {[%clk 0:00:29]} 25. f4 {[%clk 0:00:07]}  Nf7 {[%clk 0:00:26]} 26. e5 {[%clk 0:00:07]}  Rd5 {[%clk 0:00:22]} 27. exf6 {[%clk 0:00:06]}  g6 {[%clk 0:00:18]} 28. fxg6 {[%clk 0:00:06]}  hxg6 {[%clk 0:00:18]} 29. Rxg6 {[%clk 0:00:06]}  Rd7 {[%clk 0:00:10]} 30. Rg7 {[%clk 0:00:05]} 1-0


[Site "https://www.chess.com"]

[Event "Titled Tuesday Blitz December 20 Late 2022"]
[White "Shapiro, Daniel"]
[Black "Curtis, John"]
[WhiteFideId "2001780"]
[BlackFideId "3200256"]
[WhiteElo "2326"]
[BlackElo "2203"]
[Result "1-0"]
[Round "06"]
[TimeControl "180+1"]
[Date "2022.12.21"]
[WhiteClock "0:00:07"]
[BlackClock "0:00:03"]

1. d4 {[%clk 0:03:00]}  Nf6 {[%clk 0:02:59]} 2. c4 {[%clk 0:03:00]}  e6 {[%clk 0:02:59]} 3. g3 {[%clk 0:03:00]}  d5 {[%clk 0:02:59]} 4. Nf3 {[%clk 0:02:59]}  Be7 {[%clk 0:02:58]} 5. Bg2 {[%clk 0:02:59]}  O-O {[%clk 0:02:59]} 6. O-O {[%clk 0:02:59]}  c5 {[%clk 0:02:57]} 7. cxd5 {[%clk 0:02:59]}  Nxd5 {[%clk 0:02:57]} 8. e4 {[%clk 0:02:57]}  Nf6 {[%clk 0:02:57]} 9. e5 {[%clk 0:02:57]}  Nd5 {[%clk 0:02:57]} 10. dxc5 {[%clk 0:02:55]}  Bxc5 {[%clk 0:02:55]} 11. a3 {[%clk 0:02:54]}  a6 {[%clk 0:02:47]} 12. Nbd2 {[%clk 0:02:54]}  Ne7 {[%clk 0:02:43]} 13. Qc2 {[%clk 0:02:51]}  Ba7 {[%clk 0:02:41]} 14. Ng5 {[%clk 0:02:42]}  Ng6 {[%clk 0:02:37]} 15. Nde4 {[%clk 0:02:32]}  Nc6 {[%clk 0:02:33]} 16. h4 {[%clk 0:02:23]}  Nd4 {[%clk 0:02:33]} 17. Qd3 {[%clk 0:01:59]}  h6 {[%clk 0:02:31]} 18. h5 {[%clk 0:01:37]}  hxg5 {[%clk 0:02:27]} 19. hxg6 {[%clk 0:01:34]}  g4 {[%clk 0:02:16]} 20. Nd6 {[%clk 0:01:22]}  f5 {[%clk 0:01:57]} 21. Be3 {[%clk 0:01:03]}  Nc6 {[%clk 0:01:56]} 22. Bxc6 {[%clk 0:00:36]}  bxc6 {[%clk 0:01:47]} 23. Rad1 {[%clk 0:00:26]}  Bxe3 {[%clk 0:01:31]} 24. Qxe3 {[%clk 0:00:24]}  a5 {[%clk 0:00:52]} 25. Kg2 {[%clk 0:00:24]}  Ba6 {[%clk 0:00:48]} 26. Rh1 {[%clk 0:00:24]}  Qe7 {[%clk 0:00:41]} 27. Rh4 {[%clk 0:00:23]}  f4 {[%clk 0:00:37]} 28. Rdh1 {[%clk 0:00:18]}  Qxh4 {[%clk 0:00:36]} 29. gxf4 {[%clk 0:00:14]}  Qxh1+ {[%clk 0:00:26]} 30. Kxh1 {[%clk 0:00:13]}  Rfb8 {[%clk 0:00:15]} 31. Qg3 {[%clk 0:00:13]}  Kf8 {[%clk 0:00:15]} 32. Qh4 {[%clk 0:00:13]}  Be2 {[%clk 0:00:08]} 33. Qh8+ {[%clk 0:00:12]}  Ke7 {[%clk 0:00:08]} 34. Qxg7+ {[%clk 0:00:13]}  Kd8 {[%clk 0:00:09]} 35. Qf7 {[%clk 0:00:08]}  Bf3+ {[%clk 0:00:08]} 36. Kh2 {[%clk 0:00:07]}  Rxb2 {[%clk 0:00:08]} 37. g7 {[%clk 0:00:07]}  Rxf2+ {[%clk 0:00:08]} 38. Kg3 {[%clk 0:00:06]}  Rg2+ {[%clk 0:00:08]} 39. Kh4 {[%clk 0:00:06]}  Rh2+ {[%clk 0:00:07]} 40. Kg5 {[%clk 0:00:06]}  Rh5+ {[%clk 0:00:02]} 41. Kxh5 {[%clk 0:00:06]}  g3+ {[%clk 0:00:03]} 42. Kg5 {[%clk 0:00:07]}  g2 {[%clk 0:00:03]} 43. g8=Q# {[%clk 0:00:07]} 1-0


[Site "https://www.chess.com"]

[Event "Titled Tuesday Blitz December 20 Late 2022"]
[White "Shuvalova, Polina"]
[Black "Kleinman, Michael"]
[WhiteFideId "24171760"]
[BlackFideId "2609479"]
[WhiteElo "2361"]
[BlackElo "2287"]
[Result "1-0"]
[Round "06"]
[TimeControl "180+1"]
[Date "2022.12.21"]
[WhiteClock "0:00:40"]
[BlackClock "0:00:13"]

1. d4 {[%clk 0:03:00]}  Nf6 {[%clk 0:02:59]} 2. Nf3 {[%clk 0:03:00]}  g6 {[%clk 0:03:00]} 3. c4 {[%clk 0:02:59]}  Bg7 {[%clk 0:03:00]} 4. Nc3 {[%clk 0:02:59]}  d5 {[%clk 0:03:00]} 5. e3 {[%clk 0:02:58]}  O-O {[%clk 0:03:00]} 6. cxd5 {[%clk 0:02:58]}  Nxd5 {[%clk 0:03:00]} 7. Bc4 {[%clk 0:02:58]}  Nxc3 {[%clk 0:02:59]} 8. bxc3 {[%clk 0:02:58]}  c5 {[%clk 0:03:00]} 9. O-O {[%clk 0:02:57]}  Nc6 {[%clk 0:03:00]} 10. Qe2 {[%clk 0:02:55]}  Qc7 {[%clk 0:03:01]} 11. Ba3 {[%clk 0:02:54]}  b6 {[%clk 0:03:01]} 12. Rad1 {[%clk 0:02:46]}  Bb7 {[%clk 0:03:01]} 13. h4 {[%clk 0:02:46]}  Rac8 {[%clk 0:02:56]} 14. Bd3 {[%clk 0:02:41]}  Rfd8 {[%clk 0:02:52]} 15. Ng5 {[%clk 0:02:38]}  Na5 {[%clk 0:02:43]} 16. h5 {[%clk 0:02:30]}  e5 {[%clk 0:02:37]} 17. dxc5 {[%clk 0:01:43]}  bxc5 {[%clk 0:02:35]} 18. Qg4 {[%clk 0:01:32]}  e4 {[%clk 0:01:28]} 19. Bxe4 {[%clk 0:01:27]}  f5 {[%clk 0:00:52]} 20. Bxf5 {[%clk 0:01:26]}  gxf5 {[%clk 0:00:53]} 21. Qxf5 {[%clk 0:01:26]}  Qe5 {[%clk 0:00:46]} 22. Qxh7+ {[%clk 0:01:20]}  Kf8 {[%clk 0:00:45]} 23. Qg6 {[%clk 0:01:13]}  Bd5 {[%clk 0:00:20]} 24. Rxd5 {[%clk 0:00:59]}  Qxd5 {[%clk 0:00:19]} 25. Nh7+ {[%clk 0:00:54]}  Ke7 {[%clk 0:00:15]} 26. Qxg7+ {[%clk 0:00:54]}  Kd6 {[%clk 0:00:15]} 27. Nf6 {[%clk 0:00:50]}  Rg8 {[%clk 0:00:13]} 28. Qd7+ {[%clk 0:00:40]} 1-0


[Site "https://www.chess.com"]